bitfinex-derivatives/quotes_BTCF0:USTF0_20250902
["timestamp","ask_amount","ask_price","bid_price","bid_amount"]
[1756831547933,0.005,110640.0,110630.0,2.30401509]
[1756831548839,0.005,110640.0,110630.0,1.45989509]
[1756831549135,0.005,110640.0,110630.0,2.05401509]
[1756831552534,0.005,110640.0,110630.0,1.20989509]
[1756831552735,0.005,110640.0,110630.0,2.03389509]
[1756831553433,0.005,110640.0,110630.0,2.04768925]
[1756831554841,0.005,110640.0,110630.0,1.20368925]
[1756831555142,0.005,110640.0,110630.0,2.04764925]
[1756831555536,0.005,110640.0,110630.0,1.30603247]
[1756831555537,0.33763,110640.0,110630.0,1.30603247]
[1756831555740,0.33763,110640.0,110630.0,1.67682086]
[1756831556540,0.33763,110640.0,110630.0,0.83290086]
[1756831556738,0.27753,110640.0,110630.0,0.83290086]
[1756831556938,0.27753,110640.0,110630.0,0.56910086]
[1756831557138,0.30143,110640.0,110630.0,0.56910086]
[1756831558144,0.33763,110640.0,110630.0,0.56910086]
[1756831558340,0.27753,110640.0,110630.0,0.56910086]
[1756831558545,0.255,110640.0,110630.0,0.93988925]
[1756831558844,0.27753,110640.0,110630.0,0.56910086]
[1756831559341,0.005,110640.0,110630.0,0.56910086]
[1756831560542,0.30143,110640.0,110630.0,0.56910086]
[1756831560741,0.005,110640.0,110630.0,0.93988925]
[1756831561141,0.005,110640.0,110630.0,1.18988925]
[1756831561443,0.005,110640.0,110630.0,1.4853054]
[1756831561643,0.005,110640.0,110630.0,1.93726608]
[1756831561842,0.01856981,110670.0,110660.0,0.08343]
[1756831562146,0.01856981,110670.0,110660.0,2.02880678]
[1756831562355,0.01856981,110670.0,110660.0,2.11010834]
[1756831562643,0.01856981,110670.0,110660.0,2.11006834]
[1756831562839,0.01856981,110670.0,110660.0,2.02876678]
[1756831563042,0.06499981,110670.0,110660.0,0.92719]
[1756831563242,0.06899981,110670.0,110660.0,1.73376249]
[1756831563440,0.06899981,110670.0,110660.0,1.66876678]
[1756831563647,0.10519981,110670.0,110660.0,0.08343]
[1756831563945,0.07699981,110670.0,110660.0,0.82500678]
[1756831564447,0.03056981,110670.0,110660.0,0.82500678]
[1756831564645,0.05309981,110670.0,110660.0,0.82500678]
[1756831564847,0.07399981,110670.0,110660.0,0.08343]
[1756831565047,0.05009981,110670.0,110660.0,0.82500678]
[1756831565448,0.12363722,110670.0,110660.0,0.82500678]
[1756831565953,0.11663722,110670.0,110660.0,0.82700678]
[1756831567448,0.14053722,110670.0,110660.0,0.82700678]
[1756831567653,0.17673722,110670.0,110660.0,0.82700678]
[1756831567839,0.17673722,110670.0,110660.0,0.08543]
[1756831568150,0.14053722,110670.0,110660.0,0.82700678]
[1756831568949,0.17660722,110670.0,110660.0,0.82700678]
[1756831569246,0.42660722,110670.0,110660.0,0.82700678]
[1756831569449,0.42660722,110670.0,110660.0,0.45621839]
[1756831569750,0.79739561,110670.0,110660.0,0.45621839]
[1756831569941,0.79739561,110670.0,110660.0,0.08543]
[1756831570148,0.79739561,110670.0,110660.0,0.42163839]
[1756831570447,0.79739561,110670.0,110660.0,0.002]
[1756831570648,0.79739561,110670.0,110660.0,0.02568]
[1756831570846,1.64091561,110670.0,110660.0,0.002]
[1756831571043,0.79739561,110670.0,110660.0,0.04919]
[1756831571243,1.64087561,110670.0,110660.0,0.45515839]
[1756831572259,0.79739561,110670.0,110660.0,0.45515839]
[1756831572555,0.79739561,110670.0,110660.0,0.82594678]
[1756831572556,0.17660722,110670.0,110660.0,0.82594678]
[1756831572955,0.17660722,110670.0,110660.0,0.45515839]
[1756831574046,0.14053722,110670.0,110660.0,0.82594678]
[1756831574452,0.17660722,110670.0,110660.0,0.82594678]
[1756831576058,0.17660722,110670.0,110660.0,0.45515839]
[1756831576655,0.14053722,110670.0,110660.0,0.82594678]
[1756831576854,0.09410722,110670.0,110660.0,0.82594678]
[1756831578764,0.11864722,110670.0,110660.0,0.82594678]
[1756831578967,0.17824722,110670.0,110660.0,0.82594678]
[1756831579661,0.54903561,110670.0,110660.0,0.45515839]
[1756831580264,0.79903561,110670.0,110660.0,0.45515839]
[1756831580565,1.64231561,110670.0,110660.0,0.45515839]
[1756831581064,1.64231561,110670.0,110660.0,0.08437]
[1756831581260,1.64231561,110670.0,110660.0,0.41997839]
[1756831581564,0.79903561,110670.0,110660.0,0.45515839]
[1756831581759,1.64231561,110670.0,110660.0,0.02568]
[1756831582058,1.64231561,110670.0,110660.0,0.002]
[1756831582059,2.013104,110670.0,110660.0,0.002]
[1756831582370,1.64231561,110670.0,110660.0,0.002]
[1756831583162,1.66338284,110670.0,110660.0,0.002]
[1756831583360,1.64231561,110670.0,110660.0,0.002]
[1756831584367,1.66338077,110670.0,110660.0,0.002]
[1756831584558,1.66334077,110670.0,110660.0,0.002]
[1756831584758,1.29255238,110670.0,110660.0,0.002]
[1756831584959,1.66330077,110670.0,110660.0,0.002]
[1756831585163,0.57010077,110670.0,110660.0,0.45515839]
[1756831585471,1.02144722,110670.0,110660.0,0.82594678]
[1756831586163,0.98533722,110670.0,110660.0,0.82594678]
[1756831586671,0.14217722,110670.0,110660.0,0.82594678]
[1756831586862,0.98533722,110670.0,110660.0,0.82594678]
[1756831587373,1.02140722,110670.0,110660.0,0.82594678]
[1756831587563,1.02140722,110670.0,110660.0,0.54764223]
[1756831587759,1.02140722,110670.0,110660.0,0.08437]
[1756831588566,0.14217722,110670.0,110660.0,0.08437]
[1756831588869,0.14217722,110670.0,110660.0,0.79764223]
[1756831589255,0.14217722,110670.0,110660.0,0.81764223]
[1756831589562,0.11864722,110670.0,110660.0,1.13764223]
[1756831589968,0.11864722,110670.0,110660.0,0.67437]
[1756831590170,0.02056981,110670.0,110660.0,1.13764223]
[1756831590967,0.06863981,110670.0,110660.0,0.35437]
[1756831591169,0.02056981,110670.0,110660.0,0.79764223]
[1756831591360,0.06863981,110670.0,110660.0,0.81764223]
[1756831591562,0.06863981,110670.0,110660.0,1.10452062]
[1756831591769,0.04510981,110670.0,110660.0,0.64437]
[1756831592074,0.04510981,110670.0,110660.0,1.10452062]
[1756831592379,0.02056981,110670.0,110660.0,1.10452062]
[1756831592763,0.04510981,110670.0,110660.0,0.64437]
[1756831592971,0.04510981,110670.0,110660.0,0.81452062]
[1756831593173,0.10470981,110670.0,110660.0,1.15452062]
[1756831593372,0.04510981,110670.0,110660.0,1.15452062]
[1756831593865,0.02056981,110670.0,110660.0,1.15452062]
[1756831595568,0.02056981,110670.0,110660.0,1.41832062]
[1756831595768,0.02056981,110670.0,110660.0,1.48331633]
[1756831596572,0.02056981,110670.0,110660.0,1.02316571]
[1756831596973,0.02056981,110670.0,110660.0,1.48331633]
[1756831597173,0.01956981,110670.0,110660.0,1.48131633]
[1756831597375,0.02056981,110670.0,110660.0,1.48331633]
[1756831597970,0.02056981,110670.0,110660.0,1.49224167]
[1756831598170,0.01956981,110670.0,110660.0,1.49324167]
[1756831598363,0.01956981,110670.0,110660.0,1.30324167]
[1756831598569,0.01956981,110670.0,110660.0,2.27723633]
[1756831598770,0.01956981,110670.0,110660.0,1.43431633]
[1756831598970,0.01956981,110670.0,110660.0,2.27723633]
[1756831600174,0.001,110670.0,110660.0,2.29763689]
[1756831601078,0.001,110670.0,110660.0,2.38799459]
[1756831601274,0.0814,110700.0,110690.0,0.04767]
[1756831601477,0.09025224,110700.0,110680.0,0.03425]
[1756831601679,0.09025224,110700.0,110690.0,0.08192]
[1756831602477,0.09025224,110700.0,110670.0,0.46015062]
[1756831602478,0.36129918,110700.0,110670.0,0.46015062]
[1756831602671,0.0814,110680.0,110670.0,0.20192]
[1756831603774,0.3314,110680.0,110670.0,0.12]
[1756831604178,0.3334,110680.0,110670.0,0.14534]
[1756831604674,0.3334,110680.0,110670.0,0.16867]
[1756831605272,0.40630915,110680.0,110670.0,0.16867]
[1756831605578,0.40730915,110680.0,110670.0,0.16867]
[1756831605970,0.40730915,110680.0,110670.0,0.14534]
[1756831606175,0.40730915,110680.0,110670.0,0.121]
[1756831606474,0.40730915,110680.0,110670.0,0.20292]
[1756831606475,0.4283593,110680.0,110670.0,0.20292]
[1756831606684,0.40730915,110680.0,110670.0,0.20292]
[1756831606979,0.42835897,110680.0,110670.0,0.121]
[1756831607172,0.88850959,110680.0,110670.0,0.121]
[1756831607372,0.88850959,110680.0,110670.0,0.001]
[1756831607771,0.88850959,110680.0,110640.0,1.01085555]
[1756831607772,0.88850959,110680.0,110640.0,0.08486499]
[1756831608074,0.0814,110650.0,110640.0,0.42183925]
[1756831608978,0.04745,110650.0,110640.0,0.42183925]
[1756831609180,0.02461,110650.0,110640.0,0.42183925]
[1756831609484,0.0814,110650.0,110640.0,0.88198987]
[1756831609681,0.09042128,110650.0,110640.0,0.42383925]
[1756831609877,0.05647128,110650.0,110640.0,0.42383925]
[1756831610882,0.05747128,110650.0,110640.0,0.42783925]
[1756831611381,0.05747128,110650.0,110640.0,0.42683925]
[1756831611571,0.05847128,110650.0,110640.0,0.42383925]
[1756831613884,0.002,110650.0,110640.0,0.42383925]
[1756831614391,0.01121443,110650.0,110640.0,0.88398987]
[1756831614593,0.09261443,110650.0,110640.0,0.88398987]
[1756831614884,0.04945,110650.0,110640.0,0.88398987]
[1756831615290,0.02661,110650.0,110640.0,0.88398987]
[1756831615497,0.002,110650.0,110640.0,0.88398987]
[1756831616391,0.002,110650.0,110640.0,1.13398987]
[1756831617977,0.002,110650.0,110640.0,0.67383925]
[1756831618184,0.002,110650.0,110640.0,1.13398987]
[1756831618494,0.03595,110650.0,110640.0,1.13398987]
[1756831618681,0.002,110650.0,110640.0,1.13398987]
[1756831619186,0.002,110650.0,110640.0,1.14778987]
[1756831619394,0.002,110650.0,110640.0,1.39778987]
[1756831619688,0.002,110650.0,110640.0,1.14778987]
[1756831623290,0.002,110650.0,110640.0,1.21273561]
[1756831624385,0.002,110650.0,110640.0,1.23273561]
[1756831624593,0.002,110650.0,110640.0,1.87525561]
[1756831624779,0.002,110650.0,110640.0,2.10525561]
[1756831625085,0.002,110650.0,110640.0,2.07525561]
[1756831625691,0.002,110650.0,110640.0,1.86525561]
[1756831625989,0.002,110650.0,110640.0,1.74419033]
[1756831626190,0.002,110650.0,110640.0,2.07419033]
[1756831626590,0.002,110650.0,110640.0,2.06525561]
[1756831626985,0.002,110650.0,110640.0,2.31525561]
[1756831627191,0.002,110650.0,110640.0,2.40562531]
[1756831627588,0.002,110650.0,110640.0,1.47273561]
[1756831627787,0.002,110650.0,110640.0,2.40558531]
[1756831628192,0.002,110650.0,110640.0,2.34944794]
[1756831628690,0.05326334,110700.0,110650.0,0.0903517]
[1756831628895,0.10041334,110700.0,110690.0,0.08027]
[1756831629594,0.10041334,110700.0,110690.0,0.45069885]
[1756831630191,0.02640334,110700.0,110690.0,0.45169885]
[1756831630584,0.02640334,110700.0,110690.0,1.20137356]
[1756831630790,0.008,110700.0,110690.0,1.51627896]
[1756831631384,0.009,110700.0,110690.0,0.92516169]
[1756831631694,0.009,110700.0,110690.0,1.22516169]
[1756831631889,0.002,110700.0,110690.0,1.20616169]
[1756831632089,0.001,110700.0,110690.0,2.04952169]
[1756831632285,0.001,110700.0,110690.0,2.04948169]
[1756831632491,0.03486,110730.0,110700.0,0.04746]
[1756831632690,0.08201,110730.0,110720.0,0.08134]
[1756831634799,0.15653633,110730.0,110720.0,0.08134]
[1756831635301,0.15553633,110730.0,110720.0,0.08134]
[1756831635498,0.16053633,110730.0,110720.0,0.08234]
[1756831635698,0.17163781,110730.0,110720.0,0.08234]
[1756831638993,0.17163781,110730.0,110720.0,0.54208043]
[1756831639401,0.08962781,110730.0,110720.0,0.54208043]
[1756831639600,0.11393781,110730.0,110720.0,0.54208043]
[1756831639804,0.13677781,110730.0,110720.0,0.54208043]
[1756831640205,0.17163781,110730.0,110720.0,0.54208043]
[1756831644006,0.08962781,110730.0,110720.0,0.54208043]
[1756831644404,0.08052633,110730.0,110720.0,0.54208043]
[1756831644604,0.007,110730.0,110720.0,0.54208043]
[1756831644810,0.007,110730.0,110720.0,1.66396043]
[1756831645010,0.007,110730.0,110720.0,0.95208043]
[1756831645208,0.007,110730.0,110720.0,1.10208043]
[1756831645404,0.007,110730.0,110720.0,1.94392043]
[1756831645913,0.007,110730.0,110720.0,1.10208043]
[1756831646311,0.007,110730.0,110720.0,1.94388043]
[1756831648609,0.007,110730.0,110720.0,1.94384043]
[1756831649011,0.007,110730.0,110720.0,1.94380043]
[1756831649210,0.007,110730.0,110720.0,1.10208043]
[1756831649612,0.007,110730.0,110720.0,1.94376043]
[1756831650110,0.007,110730.0,110720.0,1.10208043]
[1756831650307,0.007,110730.0,110720.0,1.94372043]
[1756831650507,0.007,110730.0,110720.0,1.69372043]
[1756831651510,0.007,110730.0,110720.0,1.97417568]
[1756831653316,0.007,110730.0,110720.0,2.06448458]
[1756831653515,0.007,110730.0,110720.0,2.34414314]
[1756831653714,0.04186,110730.0,110720.0,1.97396876]
[1756831654214,0.007,110730.0,110720.0,2.34402314]
[1756831655917,0.007,110730.0,110720.0,2.43433204]
[1756831656112,0.10884302,110760.0,110730.0,0.0338]
[1756831656314,0.18610183,110760.0,110750.0,0.82144876]
[1756831656512,0.18610183,110760.0,110750.0,0.45139438]
[1756831657416,0.19010183,110760.0,110750.0,0.45139438]
[1756831657715,0.19810183,110760.0,110750.0,0.45339438]
[1756831658409,0.19510183,110760.0,110750.0,0.45339438]
[1756831658914,0.19510183,110760.0,110750.0,0.41959438]
[1756831659119,0.55815621,110760.0,110750.0,0.41859438]
[1756831659317,0.18810183,110760.0,110750.0,0.45583438]
[1756831661217,0.55815621,110760.0,110750.0,0.45583438]
[1756831661608,0.55815621,110760.0,110750.0,0.001]
[1756831661609,0.80815621,110760.0,110750.0,0.001]
[1756831661916,1.27946183,110760.0,110750.0,0.001]
[1756831662116,1.64951621,110760.0,110750.0,0.001]
[1756831662620,2.01957059,110760.0,110750.0,0.001]
[1756831663223,0.08502,110750.0,110740.0,0.37005438]
[1756831663518,0.52447991,110750.0,110740.0,0.01]
[1756831663818,0.52447991,110750.0,110740.0,0.38005438]
[1756831664219,0.77447991,110750.0,110740.0,0.01]
[1756831664420,0.40442553,110750.0,110740.0,0.38005438]
[1756831664615,1.24574553,110750.0,110740.0,0.46506438]
[1756831664812,1.19727822,110750.0,110740.0,0.83511876]
[1756831665007,1.24575548,110750.0,110740.0,0.46506438]
[1756831665222,1.19732817,110750.0,110740.0,0.83511876]
[1756831665415,0.35604817,110750.0,110740.0,0.83511876]
[1756831665611,0.91101817,110750.0,110740.0,0.83511876]
[1756831665811,0.91101817,110750.0,110740.0,0.83611876]
[1756831665812,0.91201817,110750.0,110740.0,0.83611876]
[1756831666015,0.99675548,110750.0,110740.0,0.83611876]
[1756831666416,0.94832817,110750.0,110740.0,0.83611876]
[1756831666621,0.94832817,110750.0,110740.0,0.09601]
[1756831666921,0.94832817,110750.0,110740.0,0.83611876]
[1756831667219,0.99675548,110750.0,110740.0,0.83611876]
[1756831667923,0.94832817,110750.0,110740.0,0.83611876]
[1756831668324,0.02202817,110750.0,110740.0,0.83611876]
[1756831668731,0.02202817,110750.0,110740.0,1.57617314]
[1756831669021,0.02202817,110750.0,110740.0,1.20611876]
[1756831670423,0.02202817,110750.0,110740.0,1.57617314]
[1756831670724,0.02202817,110750.0,110740.0,1.20611876]
[1756831672323,0.02202817,110750.0,110740.0,1.57617314]
[1756831673123,0.02202817,110750.0,110740.0,1.20611876]
[1756831676522,0.10704817,110750.0,110740.0,0.46601]
[1756831676722,0.10704817,110750.0,110740.0,1.20611876]
[1756831677922,0.10704817,110750.0,110740.0,0.46601]
[1756831678129,0.10704817,110750.0,110740.0,1.20611876]
[1756831679227,1.73666424,110750.0,110740.0,0.181]
[1756831679428,1.58074255,110750.0,110740.0,0.181]
[1756831679628,1.41191484,110750.0,110740.0,0.181]
[1756831679836,1.68823693,110750.0,110740.0,0.13677]
[1756831680129,1.65192693,110750.0,110720.0,0.40729438]
[1756831680318,0.43654461,110730.0,110720.0,0.30777]
[1756831680520,0.43654461,110730.0,110720.0,0.71506438]
[1756831680521,0.47375008,110730.0,110720.0,0.71506438]
[1756831680730,0.8800265,110730.0,110720.0,0.71506438]
[1756831681031,1.25008088,110730.0,110720.0,0.71506438]
[1756831681329,0.9285575,110730.0,110720.0,0.71506438]
[1756831682034,0.9305975,110730.0,110720.0,0.71506438]
[1756831682223,0.9335975,110730.0,110720.0,0.34601]
[1756831682428,1.30365188,110730.0,110720.0,0.34601]
[1756831682631,1.30365188,110730.0,110720.0,0.71606438]
[1756831683343,1.25512088,110730.0,110720.0,0.71606438]
[1756831683548,1.50512088,110730.0,110720.0,0.261]
[1756831683743,1.55365188,110730.0,110720.0,0.041]
[1756831685148,1.50512088,110730.0,110720.0,0.041]
[1756831685345,0.66404088,110730.0,110720.0,0.08877]
[1756831685646,1.50512088,110730.0,110720.0,0.041]
[1756831685848,0.66404088,110730.0,110720.0,0.041]
[1756831686051,1.50508088,110730.0,110720.0,0.041]
[1756831687247,1.50508088,110730.0,110720.0,0.001]
[1756831687443,1.87513526,110730.0,110720.0,0.001]
[1756831687838,1.87513526,110730.0,110690.0,0.08501]
[1756831687839,1.92366626,110730.0,110690.0,0.08501]
[1756831688040,0.37005438,110700.0,110690.0,0.77506438]
[1756831688245,1.21113438,110700.0,110690.0,0.77957438]
[1756831689043,1.21113438,110700.0,110690.0,0.37228]
[1756831689254,1.21113438,110700.0,110690.0,0.32451]
[1756831689255,1.58118876,110700.0,110690.0,0.32451]
[1756831689444,1.60539985,110700.0,110690.0,0.32451]
[1756831689850,1.60539985,110700.0,110690.0,0.35106]
[1756831690151,1.60539985,110700.0,110690.0,0.37433]
[1756831690345,0.76531985,110700.0,110690.0,0.37433]
[1756831690649,1.60643985,110700.0,110690.0,0.32651]
[1756831690848,1.93050651,110700.0,110690.0,0.02751]
[1756831691051,1.18935775,110700.0,110690.0,0.00651]
[1756831691252,1.93954332,110700.0,110690.0,0.00651]
[1756831691551,1.66268666,110700.0,110690.0,0.00551]
[1756831692545,1.66168666,110700.0,110690.0,0.00451]
[1756831692753,1.66568666,110700.0,110690.0,0.00551]
[1756831693154,1.66768666,110700.0,110690.0,0.00551]
[1756831693957,0.82660666,110700.0,110690.0,0.00551]
[1756831694158,0.82660666,110700.0,110690.0,0.05164]
[1756831694457,1.66776666,110700.0,110690.0,0.05164]
[1756831694657,1.66776666,110700.0,110690.0,0.02906]
[1756831694848,1.66776666,110700.0,110690.0,0.00551]
[1756831695258,0.82660666,110700.0,110690.0,0.00551]
[1756831695460,1.66780666,110700.0,110690.0,0.00551]
[1756831696054,1.66776666,110700.0,110690.0,0.00551]
[1756831698457,1.66780666,110700.0,110690.0,0.00551]
[1756831699162,1.66867619,110700.0,110690.0,0.00551]
[1756831699363,1.71720719,110700.0,110690.0,0.00551]
[1756831699960,0.87600719,110700.0,110690.0,0.00551]
[1756831700158,1.71720719,110700.0,110690.0,0.00551]
[1756831701062,1.71720719,110700.0,110690.0,0.02906]
[1756831701262,1.71720719,110700.0,110690.0,0.001]
[1756831701462,1.00395509,110700.0,110690.0,0.04713]
[1756831701662,0.95542409,110700.0,110690.0,0.08132]
[1756831701857,1.41867619,110700.0,110690.0,0.001]
[1756831702358,0.57747619,110700.0,110690.0,0.001]
[1756831702554,1.41867619,110700.0,110690.0,0.001]
[1756831702753,0.57747619,110700.0,110690.0,0.001]
[1756831702953,0.57747619,110700.0,110690.0,0.08132]
[1756831703167,1.41867619,110700.0,110690.0,0.08132]
[1756831703671,1.46678596,110700.0,110690.0,0.04713]
[1756831704057,1.41867619,110700.0,110690.0,0.04713]
[1756831704256,1.48338539,110700.0,110690.0,0.04713]
[1756831704652,1.48338539,110700.0,110690.0,0.08132]
[1756831704865,1.41867619,110700.0,110690.0,0.08132]
[1756831705167,1.48338539,110700.0,110690.0,0.08132]
[1756831706065,1.48338539,110700.0,110690.0,0.04713]
[1756831706466,1.48344135,110700.0,110690.0,0.04713]
[1756831707568,1.48344135,110700.0,110690.0,0.001]
[1756831708170,1.41873215,110700.0,110690.0,0.001]
[1756831709060,1.74990444,110700.0,110680.0,0.00451]
[1756831709267,0.54442439,110690.0,110680.0,0.00451]
[1756831709466,0.58776022,110690.0,110680.0,0.00451]
[1756831710465,1.42888022,110690.0,110670.0,0.04382869]
[1756831710768,0.52765882,110680.0,110670.0,0.04382869]
[1756831710967,0.5527954,110680.0,110670.0,0.04382869]
[1756831711174,0.5527954,110680.0,110670.0,0.02027869]
[1756831711372,1.41068097,110680.0,110670.0,0.02027869]
[1756831711675,1.68886535,110680.0,110670.0,0.02027869]
[1756831711871,0.84774535,110680.0,110670.0,0.04382869]
[1756831712070,1.68886535,110680.0,110670.0,0.04382869]
[1756831712274,1.68886535,110680.0,110670.0,0.06640869]
[1756831712767,0.84774535,110680.0,110670.0,0.06640869]
[1756831712967,1.68882535,110680.0,110670.0,0.06640869]
[1756831713371,1.67309231,110680.0,110670.0,0.02027869]
[1756831713565,1.67309231,110680.0,110670.0,0.06640869]
[1756831713763,1.67609231,110680.0,110670.0,0.06740869]
[1756831713969,0.83501231,110680.0,110670.0,0.06740869]
[1756831714172,1.67609231,110680.0,110670.0,0.10159869]
[1756831715478,1.30534855,110680.0,110670.0,0.10159869]
[1756831715872,1.30534855,110680.0,110670.0,0.02127869]
[1756831716078,0.09357583,110680.0,110670.0,0.10159869]
[1756831716381,0.82378855,110680.0,110670.0,0.10159869]
[1756831716678,0.09357583,110680.0,110670.0,0.10159869]
[1756831716971,0.46426855,110680.0,110670.0,0.10159869]
[1756831717178,0.82378855,110680.0,110670.0,0.10159869]
[1756831717476,0.46426855,110680.0,110670.0,0.10159869]
[1756831717677,1.30530855,110680.0,110670.0,0.10159869]
[1756831718978,1.28017197,110680.0,110670.0,0.10159869]
[1756831719172,1.30505974,110680.0,110670.0,0.04482869]
[1756831719364,1.30505974,110680.0,110670.0,0.02127869]
[1756831719571,1.30505974,110680.0,110670.0,0.001]
[1756831720881,0.93436702,110680.0,110670.0,0.001]
[1756831721072,1.30505974,110680.0,110670.0,0.001]
[1756831721580,1.31505974,110680.0,110670.0,0.001]
[1756831721972,1.31501974,110680.0,110670.0,0.001]
[1756831722171,1.33175278,110680.0,110670.0,0.001]
[1756831724084,1.87127321,110680.0,110650.0,0.04768]
[1756831724292,0.06645325,110660.0,110650.0,0.09694]
[1756831724471,1.30299374,110660.0,110650.0,0.04768]
[1756831725087,1.30299374,110660.0,110650.0,0.04868]
[1756831725275,1.30299374,110660.0,110650.0,0.08423]
[1756831725577,0.93230102,110660.0,110650.0,0.08423]
[1756831725980,1.30399374,110660.0,110650.0,0.08323]
[1756831726171,1.30399374,110660.0,110650.0,0.34694]
[1756831726369,0.93330102,110660.0,110650.0,0.34994]
[1756831726574,1.30399374,110660.0,110650.0,0.34994]
[1756831726984,1.30599374,110660.0,110650.0,0.34794]
[1756831727177,1.25758086,110660.0,110650.0,0.001]
[1756831727488,1.25758086,110660.0,110610.0,0.015]
[1756831727489,2.30282409,110660.0,110610.0,0.05055]
[1756831727787,0.41905336,110630.0,110620.0,0.08323]
[1756831728084,1.28486113,110630.0,110620.0,0.08323]
[1756831728285,1.23650049,110630.0,110620.0,0.08323]
[1756831729179,0.39558049,110630.0,110620.0,0.08323]
[1756831729373,1.23654049,110630.0,110620.0,0.08323]
[1756831730381,1.23754049,110630.0,110620.0,0.08323]
[1756831730684,1.24663922,110630.0,110620.0,0.08323]
[1756831731387,1.24663922,110630.0,110620.0,0.33323]
[1756831732675,1.32005861,110630.0,110620.0,0.04768]
[1756831732882,0.94936589,110630.0,110620.0,0.04768]
[1756831733077,1.32005861,110630.0,110610.0,0.09823]
[1756831733279,0.37069272,110620.0,110610.0,0.09823]
[1756831733589,0.39558049,110620.0,110610.0,0.09823]
[1756831733980,1.89558049,110620.0,110610.0,0.09823]
[1756831734384,2.52627321,110620.0,110600.0,0.00452]
[1756831734584,0.84096,110610.0,110600.0,0.0522]
[1756831734888,0.86584777,110610.0,110600.0,0.0522]
[1756831735083,1.23554049,110610.0,110600.0,0.0522]
[1756831735288,0.86484777,110610.0,110600.0,0.10146]
[1756831735489,0.86384777,110610.0,110600.0,0.72215272]
[1756831735688,0.86384777,110610.0,110600.0,0.35146]
[1756831735891,0.86384777,110610.0,110600.0,0.72215272]
[1756831736091,0.86384777,110610.0,110600.0,0.35146]
[1756831736780,1.23454049,110610.0,110600.0,0.35146]
[1756831736981,1.23654049,110610.0,110600.0,0.02912]
[1756831737181,1.23658049,110610.0,110600.0,0.02912]
[1756831737391,1.23658049,110610.0,110600.0,0.03012]
[1756831737689,1.23658049,110610.0,110600.0,0.08875]
[1756831738090,0.39558049,110610.0,110600.0,0.10246]
[1756831738286,0.86588777,110610.0,110600.0,0.10246]
[1756831738590,0.02488777,110610.0,110600.0,0.10246]
[1756831738787,0.86588777,110610.0,110600.0,0.10246]
[1756831739195,1.23658049,110610.0,110600.0,0.10246]
[1756831739885,0.86588777,110610.0,110600.0,0.35246]
[1756831740294,0.86588777,110610.0,110600.0,0.72315272]
[1756831740483,0.002,110610.0,110600.0,0.72315272]
[1756831740888,0.843,110610.0,110600.0,1.10315272]
[1756831741786,0.843,110610.0,110600.0,0.72315272]
[1756831743096,0.843,110610.0,110600.0,0.35246]
[1756831744493,1.21369272,110610.0,110600.0,0.10246]
[1756831744694,1.21369272,110610.0,110600.0,0.0532]
[1756831745698,0.37269272,110610.0,110600.0,0.08875]
[1756831745896,1.21365272,110610.0,110600.0,0.0532]
[1756831746095,1.21365272,110610.0,110600.0,0.00552]
[1756831747303,1.83434544,110610.0,110600.0,0.00552]
[1756831747492,1.57800339,110610.0,110600.0,0.00552]
[1756831748794,1.11709253,110610.0,110600.0,0.05193]
[1756831749092,1.57800339,110610.0,110600.0,0.05193]
[1756831749593,1.11709253,110610.0,110600.0,0.05193]
[1756831750199,1.11709253,110610.0,110600.0,0.08661]
[1756831750394,1.11709253,110610.0,110600.0,0.05193]
[1756831752197,0.27613253,110610.0,110600.0,0.08661]
[1756831752393,1.11713253,110610.0,110600.0,0.00552]
[1756831752588,0.27613253,110610.0,110600.0,0.04926]
[1756831752794,1.11709253,110610.0,110600.0,0.04926]
[1756831753497,1.11709253,110610.0,110600.0,0.08394]
[1756831753699,1.11709253,110610.0,110600.0,0.09785]
[1756831753905,1.57800339,110610.0,110600.0,0.09785]
[1756831754311,1.16545317,110610.0,110600.0,0.09785]
[1756831754502,1.16545317,110610.0,110600.0,0.04926]
[1756831755007,1.16545317,110610.0,110600.0,0.001]
[1756831755198,0.73704339,110610.0,110600.0,0.001]
[1756831755392,0.73704339,110610.0,110600.0,0.08394]
[1756831755796,1.57800339,110610.0,110600.0,0.08394]
[1756831755993,1.57800339,110610.0,110600.0,0.04926]
[1756831756603,0.02613253,110610.0,110600.0,0.09785]
[1756831756804,0.02613253,110610.0,110600.0,0.34785]
[1756831757006,0.86709253,110610.0,110600.0,0.34785]
[1756831757208,0.02613253,110610.0,110600.0,0.34785]
[1756831757407,0.02613253,110610.0,110600.0,0.80876086]
[1756831757707,0.02613253,110610.0,110600.0,1.15876086]
[1756831757915,0.002,110610.0,110600.0,1.15876086]
[1756831759710,0.002,110610.0,110600.0,1.26918455]
[1756831760307,0.002,110610.0,110600.0,2.11010455]
[1756831761406,0.002,110610.0,110600.0,1.26918455]
[1756831761606,0.002,110610.0,110600.0,2.11006465]
[1756831761818,0.50453033,110640.0,110600.0,2.07538465]
[1756831762011,0.52832952,110640.0,110630.0,0.08294]
[1756831762310,0.52832952,110640.0,110620.0,0.08294]
[1756831762508,0.59905067,110640.0,110620.0,0.08294]
[1756831764004,0.60005067,110640.0,110620.0,0.08294]
[1756831764198,0.60105067,110640.0,110620.0,0.08294]
[1756831764520,0.60105067,110640.0,110630.0,0.08294]
[1756831765617,0.60005067,110640.0,110620.0,0.08394]
[1756831765821,0.60305067,110640.0,110630.0,0.001]
[1756831766005,1.06396153,110640.0,110630.0,0.001]
[1756831766310,1.33230687,110640.0,110630.0,0.001]
[1756831766713,1.33030687,110640.0,110630.0,0.02433]
[1756831767010,1.33130687,110640.0,110630.0,0.001]
[1756831767205,0.87039601,110640.0,110630.0,0.001]
[1756831767406,1.33130687,110640.0,110630.0,0.001]
[1756831767708,0.87039601,110640.0,110630.0,0.02433]
[1756831768606,0.87139601,110640.0,110630.0,0.02433]
[1756831769310,1.21663601,110640.0,110630.0,0.001]
[1756831769717,1.67754687,110640.0,110630.0,0.001]
[1756831772214,1.21663601,110640.0,110630.0,0.001]
[1756831772615,1.67754687,110640.0,110630.0,0.001]
[1756831773812,0.83686687,110640.0,110630.0,0.001]
[1756831774116,1.67746687,110640.0,110630.0,0.001]
[1756831774807,1.67742687,110640.0,110630.0,0.001]
[1756831775411,1.68029129,110640.0,110630.0,0.001]
[1756831777023,0.96651601,110640.0,110630.0,0.08394]